Cogmind - Beta 16 *** ADVENTURER MODE // 2025.10.28 @ 23:10:34 Player: SonichuPrime Result: Destroyed by ZA-KU1(R) with Subdweller Beam Cannon Performance ------------- Evolutions (0) 0 Regions Visited (2) 400 Robots Destroyed (12) 60 Value Destroyed (389) 389 Prototype IDs (0) 0 Alien Tech Used (0) 0 Bonus (0) 0 TOTAL SCORE: 849 Bonus ------- None Cogmind --------- Core Integrity 0/250 Matter 295/300 Energy 100/100 System Corruption 0% Temperature Cool (9) Movement Core (150) Ox2 Location -10/Subcaves Parts ------- > --- POWER (1) -------- (None) > --- PROPULSION (2) --- (None) > --- UTILITY (2) ------ Small Storage Unit Terrain Scanner > --- WEAPON (2) ------- Medium Laser > --- INVENTORY (8) ---- Scrap Shield Peak State ------------ > --- POWER ------------ Light Ion Engine > --- PROPULSION ------- Light Treads Light Treads > --- UTILITY ---------- Small Storage Unit Medium Armor Plating > --- WEAPON ----------- EM Pulse Gun EM Shotgun > --- INVENTORY -------- Medium Laser [Rating: 9] Favorites ----------- Power Light Ion Engine Engine Light Ion Engine Propulsion Light Treads Treads Light Treads Utility Small Storage Unit Device Terrain Scanner Storage Small Storage Unit Protection Medium Armor Plating Weapon EM Pulse Gun Energy Gun EM Pulse Gun Energy Cannon Subdweller Beam Cannon Build | -11 -10 -10 ------- Run | Yrd Mat Sub Slots Evolved . | . . . Power . | . . . Propulsion . | . . . Utility . | . . . Weapon . | . . . Parts Attached 10 | 6 3 1 Power 1 | 1 . . Engine 1 | 1 . . Core . | . . . Reactor . | . . . Propulsion 2 | 2 . . Treads 2 | 2 . . Leg . | . . . Wheel . | . . . Hover . | . . . Flight . | . . . Utility 3 | 1 2 . Device 1 | . 1 . Storage 1 | 1 . . Processor . | . . . Hackware . | . . . Protection 1 | . 1 . Artifact . | . . . Weapon 4 | 2 1 1 Energy Gun 3 | 2 1 . Energy Cannon 1 | . . 1 Ballistic Gun . | . . . Ballistic Cannon . | . . . Launcher . | . . . Special Weapon . | . . . Impact Weapon . | . . . Slashing Weapon . | . . . Piercing Weapon . | . . . Special Melee Weapon . | . . . Unidentified Prototypes . | . . . Parts Lost 7 | . 1 6 Power 1 | . . 1 Propulsion 2 | . . 2 Utility 1 | . 1 . Weapon 3 | . . 3 Highest Loss Streak 6 | . 1 6 To Critical Strikes . | . . . Average Backups . | . . 2 Power . | . . . Propulsion . | . . . Utility . | . . . Weapon . | . . 1 Tool/Special . | . . . Unused Backups 1 | . . 1 Power . | . . . Propulsion . | . . . Utility 1 | . . 1 Weapon . | . . . Tool/Special . | . . . Average Slot Usage (%) 89 | . 89 88 Engine 13 | . 14 12 Treads 26 | . 28 23 Device 6 | . 1 14 Storage 14 | . 14 14 Protection 1 | . 2 . Energy Gun 25 | . 28 22 Peak Build Rating 9 | 6 9 8 Average Rating 6 | 4 6 7 On Entrance 4 | . 6 8 Avg Prop Armor Cover (%) . | . . . Naked Turns . | . . . Heaviest Build 20 | 12 20 17 Greatest Support 40 | 40 40 40 Greatest Overweight (x) 5 | . . 5 Average Overweight (x) . | . . . Largest Inventory Capacity 8 | 8 8 8 Average Capacity 7 | 6 8 8 Most Carried 4 | 4 2 4 Average Carried 1 | . . 2 Final Capacity 8 | 8 8 8 Final Carried 2 | . 1 2 Class Distribution -------------------- 100% | Mutant Dominant Class ---------------- Mutant | -10/Materials Mutant | -10/Subcaves Resources | -11 -10 -10 ----------- Run | Yrd Mat Sub Matter Collected 295 | 202 83 10 Remotely . | . . . Salvage Created 513 | . 513 . Parts 26 | . 26 . Haulers Intercepted . | . . . Recyclers Shooed . | . . . Parts Field Recycled . | . . . Retrieved Matter . | . . . Parts Self-Destructed 11 | . . 11 Prevented . | . . . Parts Restored . | . . . Kills | -11 -10 -10 ------- Run | Yrd Mat Sub Combat Hostiles Destroyed 10 | . 10 . Guns 8 | . 8 . AOE 1 | . 1 . Classes Destroyed 3 | . 3 . Tunneler 1 | . 1 . Watcher 1 | . 1 . Grunt 10 | . 10 . Best Kill Streak 6 | . 6 . Combat Bots Only 6 | . 6 . Max Kills in Single Turn 2 | . 2 . Gunslinging 1 | . 1 . Exploded 1 | . 1 . Melee . | . . . Uniques/NPCs Destroyed . | . . . Combat | -11 -10 -10 -------- Run | Yrd Mat Sub Hostile Shots Fired 100 | . 65 35 Missed 28 | . 17 11 Hits 72 | . 48 24 Projectile 72 | . 48 24 AOE 3 | . . 3 Critical Strikes 3 | . 1 2 Damage Taken 972 | . 445 527 Core 255 | . 80 175 Absorbed by Shields . | . . . Ignored by Resistances 285 | . 140 145 Core Remaining (%) 100 | 100 . . Volleys Fired 37 | . 31 6 Largest 2 | . 2 1 Hottest 90 | . 90 80 Shots Fired 53 | . 47 6 Gun 51 | . 47 4 Cannon 2 | . . 2 Launcher . | . . . Special . | . . . Kinetic . | . . . Thermal 11 | . 8 3 Explosive . | . . . Electromagnetic 42 | . 39 3 Robot Hit Streak 10 | . 10 8 Robot Miss Streak 2 | . 2 . Penetration Max . | . . . Secondary Targets 2 | . 2 . Max Gunslinging Chain 1 | . 1 . Shots Hit Robots 42 | . 36 6 Core Hits 21 | . 20 1 Critical Kills . | . . . Critical Parts Destroyed . | . . . Critical Strikes 3 | . 3 . Corrupt 3 | . 3 . Melee Attacks . | . . . Impact . | . . . Slashing . | . . . Piercing . | . . . Sneak Attacks . | . . . Combat Hostiles . | . . . Follow-up Attacks . | . . . Damage Inflicted 627 | . 583 44 Guns 588 | . 544 44 Cannons . | . . . Explosions 39 | . 39 . Melee . | . . . Ramming . | . . . Kinetic . | . . . Thermal 114 | . 102 12 Explosive . | . . . Electromagnetic 513 | . 481 32 Impact . | . . . Slashing . | . . . Piercing . | . . . Highest Corruption . | . . . Average Corruption . | . . . Corruption Purged . | . . . Corruption Blocked . | . . . Overload Shots . | . . . Overflow Damage . | . . . Projectiles . | . . . Explosions . | . . . Melee . | . . . Knockbacks . | . . . Impact . | . . . Kinetic . | . . . Secondary . | . . . Self-Inflicted Damage . | . . . Shots . | . . . Rammed . | . . . Targets Rammed . | . . . Kicked . | . . . Crushed . | . . . Highest Temperature 286 | . 286 194 Average Temperature 105 | . 108 82 Received Heat Transfer 935 | . 336 599 Effects 1 | . 1 . Interference 1 | . 1 . Siege Activations . | . . . Martial Activations . | . . . Shielding Activations . | . . . Robots Disrupted 1 | . 1 . Combat Hostiles 1 | . 1 . Robots Corrupted 1 | . 1 . Combat Hostiles 1 | . 1 . Parts Fried . | . . . Impact Corruptions . | . . . Robots Melted . | . . . Combat Hostiles . | . . . Parts Melted . | . . . Heat Transferred 222 | . 185 37 Parts Sabotaged . | . . . Parts Stolen . | . . . Parts Stripped . | . . . Power Chain Reactions 1 | . 1 . Alert | -11 -10 -10 ------- Run | Yrd Mat Sub Maximum Alert Level . | . . . Low Security (%) 100 | 100 100 . Level 1 . | . . . Level 2 . | . . . Level 3 . | . . . Level 4 . | . . . Level 5 . | . . . High Security . | . . . Max Security . | . . . Peak Influence 171 | . 171 . Initial . | . . . Average 40 | . 50 . Influence Increases 268 | . 268 . Destroy 0b10 Robot/C 200 | . 200 . Destroy 0b10 Robot/NC 10 | . 10 . Destroy Leader 52 | . 52 . Successful Hack 1 | . 1 . Destroy Structure 5 | . 5 . Influence Decreases 268 | . 107 161 Entered New Map 89 | . . 89 Time Decay 167 | . 97 70 Lost Part 10 | . 10 . Lost Ally 2 | . . 2 Squads Dispatched 3 | . 3 . Investigation 3 | . 3 . Extermination . | . . . Reinforcement . | . . . Assault . | . . . Garrison . | . . . Intercept . | . . . Searches Triggered . | . . . Construction Impeded . | . . . Haulers Reinforced . | . . . Active Scanning Responses . | . . . Cargo Convoy Interrupts . | . . . Stealth | -11 -10 -10 --------- Run | Yrd Mat Sub Distress Signals . | . . . Communications Jammed . | . . . Distress Signals . | . . . Times Spotted 23 | . 11 12 Peak Tracking Total 8 | . 5 8 Tactical Retreats 1 | . . 1 Traps | -11 -10 -10 ------- Run | Yrd Mat Sub Traps Triggered 2 | . 2 . Indirectly . | . . . Trap Hack Attempts . | . . . Triggered . | . . . Disarmed . | . . . Reprogrammed . | . . . Reused . | . . . Traps Extracted . | . . . Installed . | . . . Triggered . | . . . Machines | -11 -10 -10 ---------- Run | Yrd Mat Sub Machines Disabled . | . . . Max in Single Turn . | . . . Machines Repaired . | . . . Machines Dismantled . | . . . Machines Sabotaged . | . . . Overloaded Fab Kills . | . . . Hacking | -11 -10 -10 --------- Run | Yrd Mat Sub Machines Accessed 1 | . 1 . Terminals 1 | . 1 . Fabricators . | . . . Repair Stations . | . . . Recycling Units . | . . . Scanalyzers . | . . . Garrison Access . | . . . Total Hacks 4 | . 4 . Successful 3 | . 3 . Failed 1 | . 1 . Catastrophic . | . . . Database Lockouts . | . . . Manual . | . . . Terminals 4 | . 4 . Fabricators . | . . . Repair Stations . | . . . Recycling Units . | . . . Scanalyzers . | . . . Garrison Access . | . . . Terminal Hacks 3 | . 3 . Record 3 | . 3 . Fabricator Hacks . | . . . Repair Station Hacks . | . . . Recycling Unit Hacks . | . . . Scanalyzer . | . . . Garrison Access Hacks . | . . . Unauthorized Hacks . | . . . Terminals . | . . . Fabricators . | . . . Repair Stations . | . . . Recycling Units . | . . . Scanalyzers . | . . . Garrison Access . | . . . Data Cores Recovered . | . . . Used . | . . . Hacking Detections 1 | . 1 . Full Trace Events 1 | . 1 . Feedback Events . | . . . Feedback Blocked . | . . . Robot Schematics Acquired . | . . . Robots Built . | . . . Authchips . | . . . Time . | . . . Total Robot Build Rating . | . . . Part Schematics Acquired . | . . . Parts Built . | . . . Authchips . | . . . Time . | . . . Total Part Build Rating . | . . . Part Studies Acquired . | . . . Parts Repaired . | . . . Time . | . . . Parts Recycled . | . . . Recycled Matter . | . . . Retrieved Matter . | . . . Retrieved Components . | . . . Parts Scanalyzed . | . . . Part Schematics Acquired . | . . . Parts Damaged . | . . . Bothacking | -11 -10 -10 ------------ Run | Yrd Mat Sub Used RIF Installer . | . . . Robots Hacked . | . . . Non-combat . | . . . Combat . | . . . Robot Hacks Applied . | . . . Relay Couplers Released . | . . . Fabnet Peak Effective % . | . . . Robots Rewired 1 | . 1 . Allies Hacked . | . . . Hacks Repelled . | . . . Allies | -11 -10 -10 -------- Run | Yrd Mat Sub Total Allies 1 | . 1 . Largest Group 1 | . 1 1 Highest-Rated Group 8 | . 8 8 Highest-Rated Ally 8 | . 8 8 Total Orders . | . . . Ally Attacks 1 | . . 1 Total Damage . | . . . Kills . | . . . Allies Corrupted . | . . . Allies Melted . | . . . Intel | -11 -10 -10 ------- Run | Yrd Mat Sub Active Infowar (turns) 248 | . 40 208 Terrain 248 | . 40 208 Robot Analysis Total . | . . . Derelict Logs Recovered . | . . . Drone Launches . | . . . Drone Recoveries . | . . . Exploration | -11 -10 -10 ------------- Run | Yrd Mat Sub Turns Passed 582 | 77 297 208 Spaces Moved 300 | 49 133 118 Core 22 | 11 . 11 Treads 278 | 38 133 107 Legs . | . . . Wheels . | . . . Hover . | . . . Flight . | . . . Fastest Speed 50 | 50 160 150 Average Speed 156 | 135 160 161 Slowest Speed 300 | 160 160 300 Overloaded Moves . | . . . Propulsion Burnouts . | . . . Robots Hopped . | . . . Potential Cave-ins . | . . . Cave-ins Triggered . | . . . Exploration Rate (%) 15 | 3 27 15 Regions Visited 2 Branch Regions 1 Pre-discovered Areas . | . . . Known Exits Taken . | . . . Unknown Exits Taken 2 | 1 1 . Scrap Searched . | . . . Spaces Dug . | . . . Terrain Destroyed 5 | . 5 . Melee . | . . . Projectile . | . . . AOE 5 | . 5 . Terrain Rammed . | . . . Walls Destroyed . | . . . Machines Disabled . | . . . Actions | -11 -10 -10 --------- Run | Yrd Mat Sub Total 360 | 60 170 130 Wait . | . . . Move 298 | 48 132 118 Hop . | . . . Pick Up 11 | 6 3 2 Fast Attach . | . . . Attach 11 | 6 2 3 Detach 1 | . . 1 Swap 1 | . 1 . Drop . | . . . Fire 37 | . 31 6 Melee . | . . . Ram . | . . . Kick . | . . . Crush . | . . . Escape Stasis . | . . . Rewire 1 | . 1 . Trap . | . . . Miscellaneous . | . . . Route ------- -11/Scrapyard -10/Materials (discovered 2 exits: [*Mat] / [*Sub]) -10/Subcaves History --------- Turn | Location | Event 21 | -11/Scrapyard | Discovered new exit (range 16) 78 | -11/Scrapyard | Entered Materials 231 | -10/Materials | Discovered new exit (range 16) 306 | -10/Materials | Build established: Mutant 311 | -10/Materials | Discovered new exit (range 7) 375 | -10/Materials | Entered Subcaves 375 | -10/Subcaves | Accompanied by 1 ally 516 | -10/Subcaves | Ambushed by swarm of Subdwellers 523 | -10/Subcaves | Ambushed by Subdwellers from Twisted Machinery 524 | -10/Subcaves | Disturbed a concealed Subdweller 525 | -10/Subcaves | Ambushed by Subdwellers from Twisted Machinery 553 | -10/Subcaves | Ambushed by Subdwellers from Twisted Machinery 560 | -10/Subcaves | Core integrity fell below 50% 569 | -10/Subcaves | Lost 5 allies 572 | -10/Subcaves | Core integrity fell below 20% 583 | -10/Subcaves | Destroyed by ZA-KU1(R) with Subdweller Beam Cannon Last Messages --------------- 29-ETR(R) destroyed. EM Pulse Gun destroyed. YY-IUH(R) suffers critical hit (Destroy). YY-IUH(R) destroyed. WG-RXW(g) destroyed. ZA-KU1(R) affixes Scrap Shield Fragment to Scrap Shield. ON-WGO(g) destroyed. X8-M9I(R) destroyed. Lgt. Treads destroyed. EM Shotgun destroyed. 5Z-TUO(R) affixes Scrap Shield Fragment to Scrap Shield. V0-ZM8(R) emerges from the Twisted Machinery. Lgt. Treads destroyed. Lgt. Ion Engine destroyed. Critical hit (Meltdown: +210). Sub. Beam Cannon destroyed. O8-JT6(R) misfires. Critical hit (Meltdown: +230). Map ----- +----------------------------------------------------+ | # ##??#????????#?????????????????????? | | # #??### #?????????????????????????? | | ## % ### ????????????????????????? | | ## #? ???????????????????????? | | ##?# ????????????????????????? | | # ##?# ????????? ?????????????? | | # ### ?????????? ?????????????? | | # # ? ?????????? ?????????????? | | ## ## ##???#????? #????###?????? | | ## ### ""# #?#??????? #???# ?????? | | # ##?# " ##???????? #???% ??????? | | # ###" "" # ##???#??? #?? ??????? | | ?## " ##??#??? ##? #???????? | | ?# ## #?????# ## ##??????? | | ?# ##""!* ##?????# %%#??????? | | ????# #" $& ##??###% % ###????? | | ?????# #"$$ = = #?## " ????? | | ??????#??#" [ "# #?# " ????? | | ?????????## "### ### % " ???? | | ??????? "#?## "" "##????? | | ? ???# # "##?## "" #??????? | | ???????## %[ ###?## "" #??????? | | ????????## % ###??###### ## "" "#?????? | | ?????????##!%*%%"##???## ##?### ## #????? | | ??????????#" %=&"##??## #### #?#? ??? | | ??????????#"&!*%"????# @ R ## #?????? ??? | | ??????????# &%&=?????# #?"" ????????? | | ?????????? =% ?????## ## #??" ????#??? | | ?????????# "????#?### #### ####??" #?????? | | ??????????# ##?????????## ##??###??????? ???????? | | ?????????????????????????###????????????#????????? | | ?????????????????????????????#???????????????????? | | ?????????????????????????#???????????????????????? | | ?????????????????????????????????????????????????? | | ?????????????????????????????????????????????????? | | ?????????????????????????????????????????????????? | | ?????????????????????????????????????????????????? | | ?????????????????????????????????????????????????? | | ?????????????????????????????????????????????????? | | ?????????????????????????????????????????????????? | | ?????????????????????????????????????????????????? | | ?????????????????????????????????????????????????? | | ?????????????????????????????????????????????????? | | ?????????????????????????????????????????????????? | | ?????????????????????????????????????????????????? | | | | | | | | | | | +----------------------------------------------------+ Best States ------------- Heat Dissipation 25 Energy Generation 10 Energy Capacity 125 Matter Stores 300 Matter Capacity 300 Sight Range 16 Terrain Scan Range 14 Terrain Scan Density 10 Armor Coverage 225 Resistance: KI 20 Resistance: TH 20 Resistance: EX 20 Resistance: EM 20 Resistance: I 20 Resistance: S 20 Resistance: P 20 Evasion (%) 40 Recoil Reduction 2 Offensive Hacking 10 Item Schematics ----------------- None Robot Schematics ------------------ None Fabricated ------------ Nothing Repaired ---------- Nothing Studied --------- None Alien Tech Used ----------------- None Achievements -------------- A New Friend Challenges ------------ None Game ------ Seed StructuralCoolantClaws Manual? 0 Play Time 00:09:55 Cumulative 0.6 hours Start 2025.10.28 @ 23:02:06 End 2025.10.28 @ 23:10:34 Sessions 1 Manual Loads 0 Difficulty Adventurer Special Mode None Game No. 5 Rogue 0 Adventurer 5 Explorer 0 Win Type - Total 0 Types 0/0/0/0/0/0/0/0/0/0 Lore% 1 Gallery% 5 Achievement% 6 Wizard Run 0 Options --------- Layout 1 ASCII 0 Keyboard 0 Movement Mouse Keybinds 0 Fullscreen 1 Font 16/SmallcapsGlow Map View 50x40 Zoom Use 0% Tactical HUD 0 Map Filters NONE Filters NONE Steam SD RUN: 5d66e560-ae6e-469b-b58a-edc4b5216200